bitfinex/quotes_SOLUSD_20250307
["timestamp","ask_amount","ask_price","bid_price","bid_amount"]
[1741382019886,0.03,142.84,142.69,7.0081]
[1741382020101,49.09895737,142.77,142.7,49.09895737]
[1741382020320,49.09895737,142.79,142.72,49.09895737]
[1741382020625,3.5304,142.84,142.71,18.64964886]
[1741382020800,3.5304,142.84,142.76,49.09895737]
[1741382020801,0.03,142.84,142.76,49.09895737]
[1741382021118,0.03,142.84,142.77,49.09895737]
[1741382021320,49.09895737,142.83,142.74,1.05008994]
[1741382021620,49.09895737,142.83,142.75,67.74860623]
[1741382021829,0.03,142.84,142.77,49.09895737]
[1741382022123,0.03,142.84,142.76,24.5166]
[1741382022124,49.09895737,142.83,142.76,56.10365737]
[1741382022328,49.12895737,142.84,142.77,49.09895737]
[1741382022513,49.12895737,142.84,142.76,56.10365737]
[1741382022722,49.09895737,142.81,142.74,49.09895737]
[1741382023025,49.09895737,142.78,142.7,49.09895737]
[1741382023201,49.09895737,142.76,142.67,8.05961011]
[1741382023392,49.09895737,142.74,142.66,60.22005737]
[1741382023589,0.03,142.84,142.66,11.121]
[1741382023590,49.09895737,142.72,142.66,11.121]
[1741382023997,49.09895737,142.7,142.66,4.1116]
[1741382024292,49.09895737,142.67,142.66,4.1116]
[1741382024492,49.09895737,142.67,142.62,0.033]
[1741382024798,49.09895737,142.63,142.62,0.033]
[1741382025017,49.09895737,142.65,142.62,0.033]
[1741382025403,49.09895737,142.64,142.62,0.033]
[1741382025611,18.64964886,142.74,142.62,0.033]
[1741382025817,49.09895737,142.67,142.62,0.033]
[1741382026318,49.09895737,142.63,142.62,0.033]
[1741382026821,49.09895737,142.63,142.62,0.0001]
[1741382027196,47.2918,142.73,142.62,0.0001]
[1741382027197,0.03,142.64,142.62,0.0001]
[1741382029001,49.09895737,142.63,142.62,0.0001]
[1741382029712,0.03,142.64,142.62,0.0001]
[1741382029913,49.09895737,142.63,142.62,0.0001]
[1741382030701,0.03,142.64,142.62,49.09905737]
[1741382030901,49.09895737,142.7,142.63,67.74860623]
[1741382031098,49.09895737,142.7,142.62,0.0001]
[1741382031318,12.2599,142.74,142.63,67.74860623]
[1741382031635,49.09895737,142.69,142.62,49.09905737]
[1741382031923,49.09895737,142.69,142.63,7.0111]
[1741382032121,3.5036,142.71,142.63,7.0111]
[1741382032327,49.09895737,142.69,142.62,7.0116]
[1741382032531,49.09895737,142.71,142.63,49.09895737]
[1741382032909,49.09895737,142.66,142.62,0.0001]
[1741382033227,8.7571,142.74,142.62,7.0114]
[1741382033413,3.5023,142.76,142.63,49.09895737]
[1741382033619,49.09895737,142.65,142.62,0.0001]
[1741382033819,49.09895737,142.63,142.62,0.0001]
[1741382034339,52.60445737,142.63,142.62,0.0001]
[1741382036024,49.09895737,142.63,142.62,0.0001]
[1741382036324,3.5026,142.75,142.62,49.09905737]
[1741382036519,49.09895737,142.68,142.62,0.0001]
[1741382036825,12.2591,142.75,142.62,0.0001]
[1741382036826,49.09895737,142.69,142.62,18.64974886]
[1741382037128,49.09895737,142.7,142.63,49.09895737]
[1741382037327,49.09895737,142.68,142.62,0.0001]
[1741382037530,49.09895737,142.66,142.62,0.0001]
[1741382037900,49.09895737,142.68,142.62,0.0001]
[1741382038219,15.12,142.78,142.63,49.09895737]
[1741382038220,49.09895737,142.7,142.63,49.09895737]
[1741382038418,49.09895737,142.71,142.64,67.74860623]
[1741382038727,12.2582,142.76,142.62,0.0001]
[1741382038728,49.09895737,142.68,142.62,0.0001]
[1741382038911,49.09895737,142.67,142.62,0.0001]
[1741382039319,49.09895737,142.64,142.62,0.0001]
[1741382039525,49.09895737,142.63,142.62,0.0001]
[1741382040403,52.60445737,142.63,142.62,0.0001]
[1741382040801,49.09895737,142.63,142.62,0.0001]
[1741382041007,52.60445737,142.63,142.62,0.0001]
[1741382041430,18.64964886,142.62,142.58,1.72e-05]
[1741382041750,50.63803347,142.68,142.58,1.72e-05]
[1741382041751,3.505,142.65,142.58,1.72e-05]
[1741382042024,12.2662,142.67,142.58,1.72e-05]
[1741382042230,18.64964886,142.66,142.58,1.72e-05]
[1741382042426,12.2662,142.67,142.58,1.72e-05]
[1741382042628,49.09895737,142.62,142.58,1.72e-05]
[1741382042804,3.5048,142.67,142.58,1.72e-05]
[1741382043005,49.09895737,142.64,142.58,1.72e-05]
[1741382043206,49.09895737,142.63,142.58,1.72e-05]
[1741382043403,49.09895737,142.6,142.58,1.72e-05]
[1741382043606,12.2662,142.67,142.58,1.72e-05]
[1741382043607,49.09895737,142.59,142.58,1.72e-05]
[1741382043810,0.03,142.68,142.59,7.0131]
[1741382044226,49.09895737,142.67,142.6,67.74860623]
[1741382044417,49.12895737,142.68,142.61,49.09895737]
[1741382044712,49.09895737,142.65,142.58,25.66316606]
[1741382044920,49.09895737,142.66,142.58,7.0135172]
[1741382045129,0.03,142.68,142.61,49.09895737]
[1741382045316,0.03,142.68,142.59,18.64964886]
[1741382045317,0.03,142.68,142.63,49.09895737]
[1741382046035,0.03,142.68,142.62,312.0]
[1741382046236,0.03,142.68,142.63,18.64964886]
[1741382046413,0.03,142.68,142.65,67.74860623]
[1741382046934,49.09895737,142.73,142.67,18.64964886]
[1741382047242,49.09895737,142.71,142.64,49.09895737]
[1741382047432,12.2565,142.78,142.64,49.09895737]
[1741382047638,12.2565,142.78,142.66,18.64964886]
[1741382047639,3.5018,142.78,142.66,18.64964886]
[1741382047935,0.03,142.8,142.67,7.0091]
[1741382048142,0.03,142.8,142.64,18.64964886]
[1741382048520,0.03,142.8,142.66,18.64964886]
[1741382048723,0.03,142.8,142.64,18.64964886]
[1741382048937,49.09895737,142.7,142.64,18.64964886]
[1741382049242,49.09895737,142.71,142.64,18.64964886]
[1741382049450,49.09895737,142.72,142.65,67.74860623]
[1741382049642,49.09895737,142.77,142.7,49.09895737]
[1741382049817,0.03,142.8,142.72,30.60204886]
[1741382050018,0.03,142.8,142.74,18.64964886]
[1741382050224,0.03,142.84,142.76,18.64964886]
[1741382050419,0.03,142.84,142.77,1.05002816]
[1741382050621,0.03,142.84,142.73,7.0062]
[1741382050838,0.03,142.84,142.73,56.10515737]
[1741382050839,49.09895737,142.8,142.73,56.10515737]
[1741382051038,49.09895737,142.81,142.73,56.10515737]
[1741382051218,0.03,142.84,142.74,49.09895737]
[1741382051622,49.09895737,142.77,142.72,11.9524]
[1741382051824,0.03,142.8,142.77,18.64964886]
[1741382052037,0.03,142.84,142.79,18.64964886]
[1741382052250,0.03,142.84,142.81,18.64964886]
[1741382052550,0.03,142.84,142.81,1.04975435]
[1741382052918,0.03,142.84,142.81,1.0497519]
[1741382053123,0.03,142.84,142.83,49.09895737]
[1741382053342,0.03,142.84,142.78,56.10265737]
[1741382053557,49.09895737,142.82,142.75,49.09895737]
[1741382053856,49.09895737,142.79,142.72,11.9524]
[1741382054023,0.03,142.84,142.72,4.0349]
[1741382054216,0.03,142.84,142.66,8.2617]
[1741382055036,49.09895737,142.7,142.66,8.2617]
[1741382055256,49.09895737,142.69,142.66,8.2617]
[1741382055448,49.09895737,142.68,142.65,3.9221]
[1741382055819,49.09895737,142.67,142.6,49.09895737]
[1741382056041,49.09895737,142.67,142.59,63.80715737]
[1741382056243,49.09895737,142.67,142.6,49.09895737]
[1741382056428,49.09895737,142.68,142.61,49.09895737]
[1741382056626,3.5031,142.73,142.62,18.64964886]
[1741382056846,49.09895737,142.64,142.59,319.6953]
[1741382057031,29.7763,142.73,142.59,7.6953]
[1741382057228,49.09895737,142.66,142.59,63.80715737]
[1741382057441,12.2608,142.73,142.61,49.09895737]
[1741382057640,3.5021,142.77,142.63,18.64964886]
[1741382057947,3.5021,142.77,142.65,18.64964886]
[1741382058147,19.5,142.86,142.59,99.6453]
[1741382058148,3.5014,142.8,142.67,18.64964886]
[1741382058344,3.5009,142.82,142.69,18.64964886]
[1741382058522,151.7,142.87,142.71,18.64964886]
[1741382058724,49.09895737,142.81,142.74,49.09895737]
[1741382058934,49.09895737,142.75,142.72,4.0763]
[1741382059261,49.09895737,142.73,142.67,18.64964886]
[1741382059424,12.2815,142.84,142.67,19.70042844]
[1741382059624,3.5305,142.84,142.67,19.70042844]
[1741382059820,31.7836,142.84,142.66,8.2323]
[1741382060057,18.64964886,142.83,142.66,8.2323]
[1741382060352,18.14964886,142.83,142.66,8.2323]
[1741382060557,49.09895737,142.71,142.66,8.2323]
[1741382060758,49.09895737,142.69,142.66,8.2323]
[1741382061267,49.09895737,142.68,142.61,49.09895737]
[1741382061434,13.96,142.77,142.59,8.0767]
[1741382061435,49.09895737,142.67,142.6,49.09895737]
[1741382061635,49.09895737,142.63,142.59,8.0767]
[1741382061843,8.2748,142.81,142.57,3.8307]
[1741382061844,49.09895737,142.6,142.57,3.8307]
[1741382062063,13.88,142.68,142.57,3.8307]
[1741382062064,49.09895737,142.59,142.57,3.8307]
[1741382062264,52.60545737,142.59,142.52,8.0767]
[1741382062556,52.60545737,142.59,142.58,1.72e-05]
[1741382062927,66.44545737,142.59,142.58,1.72e-05]
[1741382063149,75.21175737,142.59,142.49,10.71202818]
[1741382063350,49.09895737,142.51,142.48,3.8307]
[1741382063539,49.09895737,142.49,142.47,0.033]
[1741382064256,49.09895737,142.48,142.47,0.033]
[1741382065167,49.09895737,142.49,142.47,0.033]
[1741382065546,49.09895737,142.48,142.47,0.033]
[1741382065878,12.2738,142.58,142.47,0.033]
[1741382065879,49.09895737,142.52,142.47,0.033]
[1741382066041,49.09895737,142.5,142.47,0.033]
[1741382066239,12.2738,142.58,142.47,0.033]
[1741382066544,49.09895737,142.5,142.47,0.033]
[1741382066746,3.5068,142.58,142.47,0.033]
[1741382066943,49.09895737,142.52,142.47,0.033]
[1741382068040,49.09895737,142.54,142.47,49.13195737]
[1741382068241,8.7634,142.64,142.48,67.74860623]
[1741382068446,49.09895737,142.55,142.47,24.5995]
[1741382068648,49.09895737,142.53,142.47,7.052]
[1741382068860,49.09895737,142.5,142.47,0.033]
[1741382069035,49.09895737,142.48,142.47,0.033]
[1741382070338,52.60815737,142.48,142.47,0.033]
[1741382070660,49.09895737,142.48,142.47,0.033]
[1741382071236,13.46,142.52,142.47,0.033]
[1741382071438,49.09895737,142.48,142.47,0.033]
[1741382071751,49.09895737,142.49,142.47,0.033]
[1741382071946,49.09895737,142.5,142.47,0.033]
[1741382072164,49.09895737,142.49,142.47,0.033]
[1741382072380,49.09895737,142.5,142.47,0.033]
[1741382072676,3.5072,142.56,142.47,0.033]
[1741382072971,49.09895737,142.54,142.47,49.13195737]
[1741382073346,49.09895737,142.52,142.47,0.033]
[1741382073552,13.36,142.6,142.47,0.033]
[1741382073553,49.09895737,142.48,142.47,0.033]
[1741382073954,49.09895737,142.52,142.47,0.033]
[1741382074143,3.5065,142.59,142.47,7.052]
[1741382074342,3.5065,142.59,142.48,18.64964886]
[1741382074343,49.09895737,142.54,142.48,18.64964886]
[1741382074867,49.09895737,142.54,142.48,330.64964886]
[1741382075062,3.5065,142.59,142.48,330.64964886]
[1741382075363,49.09895737,142.51,142.47,0.033]
[1741382075665,49.09895737,142.52,142.47,0.033]
[1741382075847,49.09895737,142.53,142.47,49.13195737]
[1741382076060,49.09895737,142.52,142.47,0.033]
[1741382076256,49.09895737,142.5,142.47,0.033]
[1741382076457,49.09895737,142.49,142.47,0.033]
[1741382076749,49.09895737,142.48,142.47,0.033]
[1741382077372,49.09895737,142.49,142.47,0.033]
[1741382078360,49.09895737,142.5,142.47,0.033]
[1741382078557,8.7695,142.54,142.47,0.033]
[1741382078558,49.09895737,142.48,142.47,0.033]
[1741382079846,13.08,142.51,142.47,0.033]
[1741382080046,49.09895737,142.5,142.47,0.033]
[1741382080247,52.60765737,142.5,142.47,0.033]
[1741382080460,49.09895737,142.48,142.47,0.033]
[1741382080660,49.09895737,142.49,142.47,0.033]
[1741382081271,49.09895737,142.5,142.47,0.033]
[1741382081669,49.09895737,142.49,142.47,0.033]
[1741382081871,49.09895737,142.51,142.47,0.033]
[1741382082178,49.09895737,142.52,142.47,0.033]
[1741382082357,3.5077,142.55,142.48,49.09895737]
[1741382082358,49.09895737,142.55,142.48,49.09895737]
[1741382082558,49.09895737,142.58,142.51,67.74860623]
[1741382082957,49.09895737,142.56,142.5,18.64964886]
[1741382083172,49.09895737,142.57,142.5,67.74860623]
[1741382083470,49.09895737,142.59,142.52,67.74860623]
[1741382083674,151.9,142.66,142.52,67.74860623]
[1741382083675,3.5031,142.73,142.56,49.09895737]
[1741382083857,49.09895737,142.66,142.58,18.64964886]
[1741382084179,49.09895737,142.67,142.6,49.09895737]
[1741382084771,49.09895737,142.71,142.64,49.09895737]
[1741382085389,49.09895737,142.68,142.61,49.09895737]
[1741382085553,49.09895737,142.7,142.63,49.09895737]
[1741382085755,49.09895737,142.71,142.64,49.09895737]
[1741382086159,49.09895737,142.7,142.63,49.09895737]
[1741382086358,49.09895737,142.69,142.55,7.015]
[1741382086574,8.7584,142.72,142.6,18.64964886]
[1741382086756,49.09895737,142.65,142.58,49.09895737]
[1741382086957,49.09895737,142.64,142.58,18.64964886]
[1741382087155,49.09895737,142.65,142.58,67.74860623]
[1741382087375,49.09895737,142.65,142.58,49.09895737]
[1741382087583,49.09895737,142.64,142.57,49.09895737]
[1741382087768,49.09895737,142.62,142.54,7.5625]
[1741382088083,49.09895737,142.56,142.54,7.5625]
[1741382088256,12.68,142.64,142.53,3.7597]
[1741382088457,12.66,142.64,142.53,3.7597]
[1741382089252,12.66,142.64,142.47,7.9643]
[1741382089556,49.09895737,142.61,142.54,49.09895737]
[1741382089879,3.5045,142.67,142.57,18.64964886]
[1741382090069,3.5042,142.69,142.57,1.05151709]
[1741382090275,3.5042,142.69,142.58,18.64964886]
[1741382090480,49.09895737,142.65,142.58,67.74860623]
[1741382090681,49.09895737,142.66,142.6,18.64964886]
[1741382091552,49.09895737,142.63,142.57,18.64964886]
[1741382091778,49.09895737,142.61,142.54,67.74860623]
[1741382092084,12.2642,142.69,142.52,49.09895737]
[1741382092085,49.09895737,142.59,142.52,49.09895737]
[1741382092384,49.09895737,142.59,142.53,18.64964886]
[1741382092584,3.5068,142.58,142.52,18.64964886]
[1741382092879,3.5068,142.58,142.51,49.09895737]
[1741382092880,49.09895737,142.57,142.5,49.09895737]
[1741382093059,49.09895737,142.56,142.49,49.09895737]
[1741382093259,49.09895737,142.55,142.48,49.09895737]
[1741382093477,49.09895737,142.54,142.47,57.06325737]
[1741382093651,12.2738,142.58,142.47,57.06325737]
[1741382093652,49.09895737,142.53,142.47,0.033]
[1741382093856,49.09895737,142.52,142.47,0.033]
[1741382094052,49.09895737,142.53,142.47,0.033]
[1741382094366,49.09895737,142.51,142.47,0.033]
[1741382094564,49.09895737,142.49,142.47,0.033]
[1741382094767,49.09895737,142.48,142.47,0.033]
[1741382096682,52.60815737,142.48,142.47,0.033]
[1741382096882,52.60815737,142.48,142.47,0.0001]
[1741382097065,52.60815737,142.48,142.45,0.033]
[1741382097384,49.09895737,142.46,142.43,0.033]
[1741382097561,12.2823,142.48,142.43,0.033]
[1741382097562,49.09895737,142.44,142.43,0.033]
[1741382097962,49.09895737,142.44,142.32,15.1194]
[1741382097963,49.09895737,142.44,142.32,8.0932]
[1741382098264,49.09895737,142.37,142.32,8.1262]
[1741382098466,49.09895737,142.38,142.32,57.22515737]
[1741382098766,18.64964886,142.32,142.29,1.9455172]
[1741382098998,8.7805,142.36,142.29,1.9455172]
[1741382099308,49.09895737,142.3,142.29,1.9455172]
[1741382100778,52.61265737,142.3,142.29,1.9455172]
[1741382100984,52.61265737,142.3,142.29,1.72e-05]
[1741382101187,61.39685737,142.3,142.15,4.1672]
[1741382101378,49.09895737,142.2,142.15,4.1672]
[1741382101579,49.09895737,142.21,142.15,4.1672]
[1741382101809,12.2979,142.3,142.18,49.09895737]
[1741382101976,7.7269,142.39,142.2,18.64964886]
[1741382102297,3.5117,142.38,142.23,18.64964886]
[1741382102502,3.5117,142.38,142.23,12.1]
[1741382102711,3.5117,142.38,142.23,18.64964886]
[1741382103013,49.09895737,142.28,142.23,1.13686]
[1741382103176,18.64964886,142.37,142.23,1.13686]
[1741382103177,49.09895737,142.25,142.23,1.13686]
[1741382103377,49.09895737,142.24,142.23,1.13686]
[1741382103906,12.04,142.31,142.23,1.13686]
[1741382104113,12.04,142.37,142.23,8.16766]
[1741382104279,12.04,142.37,142.24,19.70353857]
[1741382104478,12.04,142.37,142.24,21.70353857]
[1741382104673,12.04,142.37,142.24,19.70353857]
[1741382104880,48.19389822,142.35,142.29,18.64964886]
[1741382105181,48.19389822,142.37,142.3,66.84354708]
[1741382105387,48.19389822,142.39,142.32,66.84354708]
[1741382105582,3.51,142.45,142.32,18.64964886]
[1741382105881,12.285,142.45,142.31,18.64964886]
[1741382106104,3.51,142.45,142.31,18.64964886]
[1741382106305,7.8128,142.53,142.32,1.05337004]
[1741382106516,12.04,142.57,142.36,18.64964886]
[1741382106826,12.04,142.57,142.36,152.06]
[1741382106827,12.2754,142.56,142.36,152.06]
[1741382107021,48.19389822,142.49,142.43,48.19389822]
[1741382107317,48.19389822,142.53,142.47,48.19389822]
[1741382107487,3.5065,142.59,142.43,7.7357]
[1741382107686,3.5065,142.59,142.44,1.05259243]
[1741382107900,3.5065,142.59,142.44,3.8627]
[1741382108103,3.5065,142.59,142.4,18.64964886]
[1741382108303,12.2728,142.59,142.4,18.64964886]
[1741382108618,2.0,142.54,142.36,159.7957]
[1741382108802,48.19389822,142.46,142.38,48.19389822]
[1741382108992,48.19389822,142.48,142.41,48.19389822]
[1741382109188,18.64964886,142.51,142.36,159.7957]
[1741382109501,18.64964886,142.51,142.36,7.7357]
[1741382109697,12.2788,142.52,142.37,18.64964886]
[1741382109908,3.5082,142.52,142.37,18.64964886]
[1741382110091,3.5082,142.52,142.37,330.64964886]
[1741382110291,12.2738,142.58,142.39,18.64964886]
[1741382110597,12.04,142.57,142.41,18.64964886]
[1741382110815,48.19389822,142.52,142.43,18.64964886]
[1741382111017,48.19389822,142.55,142.49,48.19389822]
[1741382111316,0.03,142.59,142.52,48.19389822]
[1741382111617,0.03,142.59,142.52,18.64964886]
[1741382111785,0.03,142.59,142.52,19.70143538]
[1741382112491,0.03,142.7,142.55,68.64964886]
[1741382112690,0.03,142.7,142.68,48.19389822]
[1741382113206,0.03,142.7,142.65,18.64964886]
[1741382113391,0.03,142.7,142.64,33.46864886]
[1741382113599,0.03,142.7,142.65,18.64964886]
[1741382113903,0.03,142.7,142.67,18.64964886]
[1741382114213,0.03,142.7,142.63,4.1097]
[1741382114582,48.19389822,142.67,142.63,4.1097]
[1741382114782,0.03,142.7,142.63,4.1097]
[1741382114783,48.19389822,142.68,142.63,4.1097]
[1741382114985,48.19389822,142.66,142.59,48.19389822]
[1741382115212,0.03,142.7,142.62,48.19389822]
[1741382115510,0.03,142.7,142.64,18.64964886]
[1741382115816,0.03,142.73,142.65,1.05077532]
[1741382116009,0.03,142.74,142.67,7.7337]
[1741382116183,0.03,142.74,142.69,18.64964886]
[1741382116384,0.03,142.85,142.71,18.64964886]
[1741382116689,0.03,142.85,142.78,48.19389822]
[1741382116889,48.22389822,142.85,142.78,48.19389822]
[1741382117094,0.03,142.85,142.74,18.64964886]
[1741382117388,0.03,142.85,142.7,18.64964886]
[1741382117609,0.03,142.85,142.72,18.64964886]
[1741382117932,0.03,142.85,142.68,1.0501835]
[1741382118232,0.03,142.85,142.67,7.7337]
[1741382118387,48.19389822,142.71,142.67,7.7337]
[1741382118697,48.19389822,142.68,142.61,68.43889822]
[1741382118884,48.19389822,142.69,142.62,48.19389822]
[1741382119086,48.19389822,142.68,142.61,8.225]
[1741382119315,12.2574,142.77,142.61,8.225]
[1741382119690,18.64964886,142.76,142.61,8.225]
[1741382119905,3.5021,142.77,142.62,19.70075262]
[1741382120109,3.5021,142.77,142.62,31.72075262]
[1741382120391,3.5021,142.77,142.53,15.1549]
[1741382120392,49.61771074,142.63,142.53,15.1549]
[1741382120617,12.2574,142.77,142.58,2.0]
[1741382120916,12.2574,142.77,142.6,24.5441]
[1741382121091,3.5021,142.77,142.61,19.70058408]
[1741382121291,3.5006,142.83,142.64,50.0]
[1741382121490,48.35953762,142.8,142.73,48.35953762]
[1741382121695,48.35953762,142.75,142.66,18.64964886]
[1741382122003,12.2524,142.83,142.67,18.64964886]
[1741382122400,12.2524,142.83,142.69,18.64964886]
[1741382122922,18.64964886,142.82,142.65,8.0004]
[1741382123351,48.35953762,142.68,142.65,8.0004]
[1741382123516,48.35953762,142.73,142.61,0.033]
[1741382123517,48.35953762,142.66,142.61,0.033]
[1741382123837,48.35953762,142.62,142.61,0.033]
[1741382124221,48.35953762,142.73,142.61,0.033]
[1741382124423,18.64964886,142.72,142.61,0.033]
[1741382124632,48.35953762,142.62,142.61,0.033]
[1741382125011,51.86533762,142.62,142.61,0.033]
[1741382125417,100.22487524,142.62,142.61,0.033]
[1741382125617,51.86533762,142.62,142.61,0.033]
[1741382125814,48.35953762,142.62,142.61,0.033]
[1741382126017,12.02,142.69,142.61,0.033]
[1741382126248,15.5243,142.69,142.61,0.033]
[1741382126748,48.35953762,142.62,142.61,0.033]
[1741382127432,48.35953762,142.63,142.61,0.033]
[1741382127836,151.76,142.74,142.61,18.68264886]
[1741382128042,51.86263762,142.73,142.61,0.033]
[1741382128237,51.86263762,142.73,142.62,48.35953762]
[1741382128426,48.35953762,142.67,142.61,0.033]
[1741382128755,48.35953762,142.66,142.61,0.033]
[1741382129043,3.5023,142.76,142.62,48.35953762]
[1741382129360,48.35953762,142.66,142.61,0.033]
[1741382129766,48.35953762,142.73,142.61,0.033]
[1741382130264,48.35953762,142.69,142.62,67.00918648]
[1741382130553,48.35953762,142.69,142.61,7.045]
[1741382130554,48.35953762,142.72,142.65,48.35953762]
[1741382130748,48.35953762,142.71,142.64,67.00918648]
[1741382131065,48.35953762,142.71,142.61,8.09644455]
[1741382131066,48.35953762,142.74,142.68,18.64964886]
[1741382131244,48.35953762,142.74,142.67,55.36863762]
[1741382131574,48.35953762,142.74,142.65,8.1554]
[1741382131575,48.35953762,142.69,142.65,8.1554]
[1741382131735,0.03,142.77,142.65,15.1654]
[1741382132064,48.35953762,142.71,142.65,8.1554]
[1741382132252,48.35953762,142.72,142.66,18.64964886]
[1741382132438,0.03,142.77,142.7,18.64964886]
[1741382132648,0.03,142.77,142.73,48.35953762]
[1741382132862,0.03,142.77,142.74,67.00918648]
[1741382133043,0.03,142.77,142.75,7.0052]
[1741382133353,0.03,142.77,142.76,67.00918648]
[1741382133774,0.03,142.84,142.77,22.77234886]
[1741382133934,0.03,142.84,142.78,48.35953762]
[1741382134132,0.03,142.84,142.81,18.64964886]
[1741382134373,0.03,142.85,142.81,18.64964886]
[1741382134543,0.03,142.85,142.83,18.64964886]
[1741382134858,0.03,142.92,142.85,18.64964886]
[1741382135058,0.03,142.92,142.85,8.04977937]
[1741382135237,0.03,142.92,142.91,67.00918648]
[1741382135435,0.03,142.92,142.88,1.04923229]
[1741382135634,0.03,142.93,142.92,18.64964886]
[1741382135835,0.03,142.93,142.87,152.74887733]
[1741382136056,0.03,142.99,142.87,151.7]
[1741382136256,0.03,142.99,142.94,48.35953762]
[1741382136430,0.03,142.99,142.94,418.80737524]
[1741382136631,0.03,142.99,142.98,48.35953762]
[1741382136938,0.8541316,143.01,143.0,18.64964886]
[1741382137139,0.03,143.04,143.0,19.69800479]
[1741382137335,0.03,143.04,143.01,48.35953762]
[1741382137542,0.03,143.04,142.97,1.04815364]
[1741382137761,0.03,143.04,142.97,18.64964886]
[1741382137762,3.5256,143.04,142.97,18.64964886]
[1741382137934,3.5256,143.04,142.94,8.0883]
[1741382138135,18.64964886,143.03,142.92,3.7881]
[1741382138347,12.02,143.02,142.9,3.52830669]
[1741382138558,48.35953762,142.99,142.9,3.52830669]
[1741382138757,48.35953762,142.96,142.87,8.2433]
[1741382138973,48.35953762,142.91,142.84,52.41523762]
[1741382139471,3.4957,143.03,142.87,2.0]
[1741382139674,0.03,143.04,142.9,20.64964886]
[1741382139964,0.03,143.04,142.89,50.0]
[1741382139965,0.03,143.04,142.98,312.0]
[1741382140176,8.278,143.25,143.0,70.64964886]
[1741382140347,3.4906,143.24,143.04,18.64964886]
[1741382140547,29.6704,143.24,143.05,1.04782336]
[1741382140747,48.35953762,143.19,143.12,48.35953762]
[1741382141266,48.35953762,143.17,143.1,48.35953762]
[1741382141561,12.2223,143.18,143.03,7.6783]
[1741382141760,3.4921,143.18,143.11,48.35953762]
[1741382141967,48.35953762,143.16,143.08,48.35953762]
[1741382142159,18.64964886,143.17,143.03,7.6783]
[1741382142338,48.35953762,143.11,143.04,48.35953762]
[1741382142534,48.35953762,143.11,143.03,7.6783]
[1741382142741,48.35953762,143.09,143.03,7.6783]
[1741382143040,3.4928,143.15,143.08,48.35953762]
[1741382143252,48.35953762,143.14,143.07,48.35953762]
[1741382144248,3.4928,143.15,143.09,48.35953762]
[1741382144559,3.4901,143.26,143.14,48.35953762]
[1741382144739,48.35953762,143.24,143.17,48.35953762]
[1741382144938,48.35953762,143.24,143.12,18.64964886]
[1741382144939,3.4901,143.26,143.2,48.35953762]
[1741382145241,48.35953762,143.26,143.19,48.35953762]
[1741382145550,48.35953762,143.23,143.16,48.35953762]
[1741382145758,48.05167402,143.24,143.17,48.05167402]
[1741382145955,48.05167402,143.24,143.13,1.04744358]
[1741382145956,48.05167402,143.23,143.12,18.64964886]
[1741382146153,48.05167402,143.21,143.14,48.05167402]
[1741382146542,0.03,143.27,143.13,48.05167402]
[1741382146869,48.05167402,143.2,143.12,48.05167402]
[1741382147052,48.05167402,143.2,143.1,3.9942]
[1741382147053,51.54397402,143.17,143.1,52.04587402]
[1741382147252,12.2231,143.17,143.1,3.9942]
[1741382147457,3.4923,143.17,143.13,48.09411913]
[1741382147654,12.01,143.24,143.1,3.9942]
[1741382147655,12.2181,143.23,143.14,48.09411913]
[1741382147858,12.2181,143.23,143.12,48.09411913]
[1741382148059,48.09411913,143.17,143.1,52.08831913]
[1741382148258,48.09411913,143.16,143.09,48.09411913]
[1741382148448,48.09411913,143.16,143.05,170.06964886]
[1741382148449,48.09411913,143.22,143.1,48.09411913]
[1741382148767,48.09411913,143.18,143.11,48.09411913]
[1741382149140,48.09411913,143.18,143.08,48.09411913]
[1741382149141,12.2197,143.21,143.14,48.09411913]
[1741382149384,12.2197,143.21,143.15,48.09411913]
[1741382149668,3.4913,143.21,143.11,48.09411913]
[1741382149849,3.4913,143.21,143.15,48.09411913]
[1741382150462,3.4913,143.21,143.18,48.09411913]
[1741382150742,0.03,143.24,143.2,48.09411913]